fUST/lending_fUST_20240521
["ID","MTS","AMOUNT","RATE_DAILY","PERIOD"]
[327644112,1716270653794,-500.0,0.00019178,2]
[327644114,1716270653803,-275.0,0.00019178,2]
[327644116,1716270653812,-500.0,0.00019178,2]
[327644117,1716270653821,-500.0,0.00019178,2]
[327644119,1716270653830,-500.0,0.00019178,2]
[327644121,1716270653839,-500.0,0.00019178,2]
[327644123,1716270653848,-500.0,0.00019178,2]
[327644125,1716270653857,-500.0,0.00019178,2]
[327644126,1716270653866,-500.0,0.00019178,2]
[327644128,1716270653875,-500.0,0.00019178,2]
[327644130,1716270653884,-500.0,0.00019178,2]
[327644132,1716270653894,-500.0,0.00019178,2]
[327644134,1716270653903,-500.0,0.00019178,2]
[327644136,1716270653912,-1584.339582,0.00019178,2]
[327644138,1716270653922,-500.0,0.00019178,2]
[327644139,1716270653932,-500.0,0.00019178,2]
[327644141,1716270653941,-500.0,0.00019178,2]
[327644143,1716270653951,-500.0,0.00019178,2]
[327644145,1716270653961,-500.0,0.00019178,2]
[327644147,1716270653970,-500.0,0.00019178,2]
[327644149,1716270653980,-500.0,0.00019178,2]
[327644151,1716270653990,-500.0,0.00019178,2]
[327644153,1716270653999,-500.0,0.00019178,2]
[327644154,1716270654009,-500.0,0.00019178,2]
[327644156,1716270654019,-500.0,0.00019178,2]
[327644158,1716270654028,-500.0,0.00019178,2]
[327644160,1716270654038,-500.0,0.00019178,2]
[327644162,1716270654048,-500.0,0.00019178,2]
[327644164,1716270654056,-500.0,0.00019178,2]
[327644166,1716270654065,-500.0,0.00019178,2]
[327644167,1716270654075,-500.0,0.00019178,2]
[327644169,1716270654084,-500.0,0.00019178,2]
[327644171,1716270654094,-168.927922,0.00019178,2]
[327644173,1716270654103,-163.300552,0.00019178,2]
[327644175,1716270654114,-508.578085,0.00019178,2]
[327644177,1716270654123,-508.578085,0.00019178,2]
[327644179,1716270654133,-508.578085,0.00019178,2]
[327644181,1716270654143,-508.578085,0.00019178,2]
[327644182,1716270654152,-508.578085,0.00019178,2]
[327644184,1716270654162,-508.578085,0.00019178,2]
[327644186,1716270654176,-508.578085,0.00019178,2]
[327644188,1716270654186,-508.578085,0.00019178,2]
[327644190,1716270654195,-508.578085,0.00019178,2]
[327644192,1716270654206,-508.578085,0.00019178,2]
[327644193,1716270654215,-508.578085,0.00019178,2]
[327644195,1716270654224,-508.578085,0.00019178,2]
[327644197,1716270654234,-508.578085,0.00019178,2]
[327644199,1716270654245,-508.578085,0.00019178,2]
[327644201,1716270654255,-508.578085,0.00019178,2]
[327644202,1716270654265,-508.578085,0.00019178,2]
[327644204,1716270654274,-508.578085,0.00019178,2]
[327644206,1716270654283,-508.578085,0.00019178,2]
[327644208,1716270654292,-508.578085,0.00019178,2]
[327644210,1716270654302,-508.578086,0.00019178,2]
[327644212,1716270654311,-437.8502821,0.00019178,4]
[327644213,1716270654321,-338.1,0.00019823,2]
[327644215,1716270654331,-1124.4,0.00019823,2]
[327644217,1716270654341,-527.29134059,0.00019859,2]
[327644219,1716270654350,-306.15005556,0.00019883,2]
[327644221,1716270654359,-488.19947351,0.000199,2]
[327644222,1716270654369,-282.68956673,0.0002,2]
[327644224,1716270654378,-4693.15522604,0.0002,2]
[327644226,1716270654387,-400.0,0.0002,2]
[327644228,1716270654397,-155.04341216,0.0002,2]
[327644230,1716270654406,-1565.76746434,0.0002,2]
[327644232,1716270654415,-121033.08635795,0.0002,2]
[327644234,1716270654425,-1548.9308741,0.0002,2]
[327644236,1716270654434,-1843.9792457,0.0002,2]
[327644238,1716270654444,-13460.64885593,0.0002,2]
[327644240,1716270654453,-1841.19181109,0.0002,2]
[327644242,1716270654463,-4247.59893496,0.0002,2]
[327644244,1716270654472,-52700.08861564,0.0002,2]
[327644246,1716270654481,-2000.0,0.0002,15]
[327644248,1716270654491,-392.36697081,0.000203,2]
[327644250,1716270654500,-3618.0671546,0.0002066,7]
[327644252,1716270654509,-566.29625141,0.00020905,2]
[327644254,1716270654518,-429.56178939,0.00020905,2]
[327644256,1716270654527,-269.07691076,0.00020906,2]
[327644257,1716270654536,-327.004705,0.0002091,2]
[327644258,1716270654546,-285.71348578,0.0002091,2]
[327644259,1716270654554,-286.36920297,0.0002091,2]
[327644260,1716270654564,-155.66174563,0.0002091,2]
[327644261,1716270654573,-172.72898236,0.0002091,2]
[327644262,1716270654582,-10160.20237028,0.00020911,2]
[327644263,1716270654591,-1282.96772707,0.00020912,2]
[327644264,1716270654600,-262.16881459,0.00020912,2]
[327644265,1716270654610,-155.89043327,0.00020912,2]
[327644266,1716270654619,-155.10431664,0.00020912,2]
[327644267,1716270654628,-277.83569966,0.00020912,2]
[327644268,1716270654638,-193.67619883,0.00020912,2]
[327644269,1716270654647,-155.81924677,0.00020912,2]
[327644270,1716270654656,-155.29933997,0.00020912,2]
[327644271,1716270654665,-309.83207603,0.00020912,2]
[327644272,1716270654675,-8929.55842509,0.00020912,2]
[327644273,1716270654684,-155.1368754,0.00020912,2]
[327644274,1716270654694,-155.12476487,0.00020912,2]
[327644275,1716270654703,-281.97832052,0.00020912,2]
[327644276,1716270654712,-217.93265939,0.00020912,2]
[327644277,1716270654722,-1690.24843919,0.00020912,2]
[327644278,1716270654731,-303.02432633,0.00020912,2]
[327644279,1716270654741,-283.45640941,0.00020912,2]
[327644280,1716270654751,-302.03223449,0.00020912,2]
[327644281,1716270654760,-309.59752322,0.00020912,2]
[327644282,1716270654769,-260.29404441,0.00020912,2]
[327644283,1716270654779,-237.70391812,0.00020912,2]
[327644284,1716270654788,-155.24956511,0.00020912,2]
[327644285,1716270654797,-601.76581966,0.00020912,2]
[327644286,1716270654807,-2108.05589247,0.00020912,2]
[327644287,1716270654816,-309.89091511,0.00020912,2]
[327644288,1716270654826,-2429.32800308,0.00020912,2]
[327644289,1716270654836,-2473.6501121,0.00020912,2]
[327644290,1716270654846,-1902.90637024,0.00020912,2]
[327644291,1716270654856,-157.51061701,0.00020912,2]
[327644292,1716270654866,-280.0,0.00021,2]
[327644293,1716270654875,-237.33171517,0.00021,2]
[327644294,1716270654885,-10040.69412497,0.00021,2]
[327644295,1716270654894,-197.85308836,0.00021,2]
[327644296,1716270654903,-11166.64365747,0.00021,2]
[327644297,1716270654913,-626.26668279,0.00021155,2]
[327644298,1716270654922,-200.0,0.0002137,2]
[327644299,1716270654931,-500.248851,0.00021918,2]
[327644300,1716270654940,-500.248851,0.00021918,2]
[327644301,1716270654950,-500.248851,0.00021918,2]
[327644302,1716270654960,-500.248851,0.00021918,2]
[327644303,1716270654970,-500.248851,0.00021918,2]
[327644305,1716270654979,-500.248851,0.00021918,2]
[327644306,1716270654988,-500.248851,0.00021918,2]
[327644308,1716270654997,-500.248851,0.00021918,2]
[327644309,1716270655006,-500.248851,0.00021918,2]
[327644311,1716270655015,-500.248851,0.00021918,2]
[327644312,1716270655025,-500.248851,0.00021918,2]
[327644313,1716270655034,-500.248851,0.00021918,2]
[327644315,1716270655044,-500.248851,0.00021918,2]
[327644317,1716270655053,-500.248851,0.00021918,2]
[327644318,1716270655062,-500.248851,0.00021918,2]
[327644321,1716270655071,-500.248851,0.00021918,2]
[327644323,1716270655081,-500.248851,0.00021918,2]
[327644324,1716270655091,-500.248851,0.00021918,2]
[327644327,1716270655101,-500.248851,0.00021918,2]
[327644329,1716270655110,-500.248853,0.00021918,2]
[327644330,1716270655119,-10000.0,0.00021918,2]
[327644333,1716270655129,-11611.296475,0.00021918,2]
[327644335,1716270655139,-166.666666,0.00021918,2]
[327644337,1716270655149,-151.0,0.00021918,2]
[327644339,1716270655158,-151.0,0.00021918,2]
[327644340,1716270655170,-151.0,0.00021918,2]
[327644342,1716270655180,-151.0,0.00021918,2]
[327644345,1716270655189,-151.0,0.00021918,2]
[327644347,1716270655198,-151.0,0.00021918,2]
[327644349,1716270655209,-151.0,0.00021918,2]
[327644351,1716270655218,-151.0,0.00021918,2]
[327644353,1716270655227,-151.0,0.00021918,2]
[327644355,1716270655237,-151.0,0.00021918,2]
[327644357,1716270655248,-151.0,0.00021918,2]
[327644359,1716270655257,-248.970409,0.00021918,2]
[327644361,1716270655266,-171.13408402,0.00022,2]
[327644363,1716270655276,-159.73051569,0.00022,2]
[327644365,1716270655285,-620.31333414,0.00022212,2]
[327644367,1716270655294,-3783.51164751,0.000223,6]
[327644368,1716270655303,-166.666666,0.00022431,2]
[327644371,1716270655312,-288.90255099,0.000225,2]
[327644373,1716270655321,-338.1,0.0002293,3]
[327644375,1716270655331,-1124.4,0.0002293,3]
[327644377,1716270655342,-166.666666,0.00022944,2]
[327644378,1716270655351,-309.70579883,0.00023,2]
[327644381,1716270655361,-620.01566671,0.00023323,2]
[327644383,1716270655370,-166.666666,0.00023456,2]
[327644385,1716270655380,-340.71562748,0.000239,2]
[327644386,1716270655389,-166.666666,0.00023969,2]
[327644388,1716270655398,-187.1961905,0.00024,2]
[327644390,1716270655407,-275.268858,0.00024384,2]
[327644393,1716270655417,-166.666666,0.00024482,2]
[327644395,1716270655426,-620.00078334,0.00024489,2]
[327644396,1716270655435,-380.0,0.00024658,2]
[327644411,1716270655550,-400.79054117,0.00025,2]
[327644413,1716270655559,-167.45627556,0.00025,2]
[327644415,1716270655569,-309.70579883,0.00025,14]
[327644417,1716270655578,-6363.89504595,0.00025,2]
[327644419,1716270655587,-7392.12775575,0.00025,2]
[327644421,1716270655597,-2000.0,0.00025,30]
[327644423,1716270655606,-151.55758764,0.00025399,2]
[327644425,1716270655616,-11157.57947128,0.00026,2]
[327644427,1716270655625,-154.97898702,0.00026,2]
[327644429,1716270655635,-338.1,0.00026037,5]
[327644431,1716270655644,-1124.4,0.00026037,5]
[327644433,1716270655654,-500.0,0.000263,2]
[327644435,1716270655663,-155.03720893,0.0002651,2]
[327644437,1716270655672,-155.03720893,0.0002651,2]
[327644439,1716270655682,-20472.2168669,0.0002651,7]
[327644441,1716270655691,-2044.80167355,0.000266,2]
[327644443,1716270655700,-3945.80621386,0.000266,2]
[327644445,1716270655709,-5636.57709934,0.00026998,2]
[327644447,1716270655718,-1267.80655507,0.00027,15]
[327644449,1716270655728,-1136.74590385,0.0002739,2]
[327644451,1716270655737,-500.0,0.00027397,2]
[327644453,1716270655746,-500.0,0.00027397,2]
[327644455,1716270655755,-281.68455418,0.00027397,2]
[327644457,1716270655764,-500.0,0.00027397,2]
[327644459,1716270655773,-500.0,0.00027397,2]
[327644461,1716270655783,-400.0,0.00027397,2]
[327644463,1716270655792,-500.0,0.00027397,2]
[327644465,1716270655802,-500.0,0.00027397,2]
[327644467,1716270655811,-500.0,0.00027397,2]
[327644470,1716270655820,-500.0,0.00027397,2]
[327644472,1716270655830,-500.0,0.00027397,2]
[327644474,1716270655838,-500.0,0.00027397,2]
[327644476,1716270655848,-361.67631357,0.00027397,2]
[327644478,1716270655857,-500.0,0.00027397,2]
[327644480,1716270655867,-500.0,0.00027397,2]
[327644482,1716270655876,-500.0,0.00027397,2]
[327644484,1716270655886,-500.0,0.00027397,2]
[327644486,1716270655895,-500.0,0.00027397,2]
[327644488,1716270655905,-500.0,0.00027397,2]
[327644490,1716270655914,-2755.59,0.00027397,2]
[327644492,1716270655923,-2755.59,0.00027397,2]
[327644494,1716270655932,-2755.59,0.00027397,2]
[327644496,1716270655942,-2755.59,0.00027397,2]
[327644498,1716270655951,-2755.59,0.00027397,2]
[327644500,1716270655962,-2755.59,0.00027397,2]
[327644502,1716270655971,-2755.59,0.00027397,2]
[327644504,1716270655981,-2755.59,0.00027397,2]
[327644506,1716270655990,-2755.59,0.00027397,2]
[327644508,1716270655999,-2755.59,0.00027397,2]
[327644510,1716270656008,-2755.59,0.00027397,2]
[327644512,1716270656018,-2755.59,0.00027397,2]
[327644514,1716270656027,-2755.59,0.00027397,2]
[327644516,1716270656036,-2755.59,0.00027397,2]
[327644518,1716270656046,-2755.59,0.00027397,2]
[327644520,1716270656056,-2755.59,0.00027397,2]
[327644522,1716270656065,-2755.59,0.00027397,2]
[327644524,1716270656074,-2755.59,0.00027397,2]
[327644526,1716270656083,-2755.59,0.00027397,2]
[327644528,1716270656092,-2755.59,0.00027397,2]
[327644530,1716270656101,-2755.59,0.00027397,2]
[327644532,1716270656110,-2755.59,0.00027397,2]
[327644534,1716270656120,-2755.59,0.00027397,2]
[327644536,1716270656129,-2755.67529934,0.00027397,2]
[327644538,1716270656139,-500.0,0.00027397,2]
[327644540,1716270656148,-500.0,0.00027397,2]
[327644541,1716270656157,-285.79885205,0.00027397,2]
[327644544,1716270656172,-500.0,0.00027397,2]
[327644546,1716270656181,-500.0,0.00027397,2]
[327644548,1716270656191,-500.0,0.00027397,2]
[327644549,1716270656202,-500.0,0.00027397,2]
[327644552,1716270656212,-151.0,0.00027397,2]
[327644554,1716270656221,-151.0,0.00027397,2]
[327644556,1716270656230,-151.635862,0.00027397,2]
[327644557,1716270656239,-151.0,0.00027397,2]
[327644559,1716270656253,-151.0,0.00027397,2]
[327644562,1716270656264,-154.302698,0.00027397,2]
[327644564,1716270656273,-163.29693306,0.00027397,10]
[327644566,1716270656283,-28965.61758019,0.000275,2]
[327644568,1716270656292,-221.60537528,0.00028,2]
[327644570,1716270656302,-151.03927021,0.00028809,2]
[327644572,1716270656311,-189.72933688,0.00029,2]
[327644573,1716270656319,-414.88000791,0.00029,2]
[327644576,1716270656329,-338.1,0.00029144,7]
[327644577,1716270656339,-1124.4,0.00029144,7]
[327644580,1716270656349,-155.04470881,0.0003,4]
[327644582,1716270656358,-464.20978224,0.0003,30]
[327644584,1716270656367,-155.20319933,0.0003,4]
[327644586,1716270656376,-3466.67827902,0.0003,5]
[327644587,1716270656386,-26150.62936622,0.0003,5]
[327644616,1716270656651,-101.21631901,0.0003,5]
[327644699,1716270657568,155.02790502,9.999e-05,2]
[327644779,1716270679406,306.15005556,0.00016,2]
[327644780,1716270697785,285.66199498,0.00016,2]
[327644782,1716270749712,154.96889149,0.00015939,7]
[327644783,1716270753052,155.02480397,9.999e-05,2]
[327644784,1716270799430,580.82,0.0002651,120]
[327644808,1716271628480,-1500.0,0.00034568,120]
[327644840,1716271832313,-155.02790502,0.00017439,2]
[327644841,1716271832323,-189.96457126,0.00017439,2]
[327644842,1716271832333,-145.50754032,0.0001744,2]
[327644844,1716271832346,-91.07624243,0.0001744,2]
[327644846,1716271832357,-452.67725576,0.00017441,2]
[327644848,1716271832367,-909.92037244,0.00017441,2]
[327644850,1716271832377,-266.61015013,0.00017441,7]
[327644852,1716271832386,-230.87532501,0.00017441,2]
[327644854,1716271832396,-476.1855829,0.00017442,2]
[327644855,1716271832406,-10454.14770375,0.00018143,2]
[327644857,1716271832416,-6894.23889232,0.00019,2]
[327644859,1716271832425,-162.560857,0.00019073,2]
[327644861,1716271832435,-305.71239995,0.00019174,2]
[327644863,1716271832444,-156.99250717,0.00019174,2]
[327644865,1716271832454,-264.38756781,0.00019174,2]
[327644867,1716271832464,-820.16152218,0.00019174,2]
[327644869,1716271832475,-2367.68599063,0.00019174,2]
[327644885,1716271832634,-835.50091713,0.00019174,2]
[327644887,1716271832644,-266.43867809,0.00019174,2]
[327644888,1716271832654,-210.32418682,0.00019174,2]
[327644890,1716271832664,-173.85199712,0.00019175,2]
[327644892,1716271832673,-235.43495783,0.00019175,2]
[327644894,1716271832683,-10578.1808263,0.00019177,2]
[327644896,1716271832693,-225.4,0.00019574,2]
[327644898,1716271832702,-774.8,0.00019679,2]
[327644900,1716271832711,-250.20922682,0.000199,2]
[327644902,1716271832721,-1015.61125529,0.00019909,2]
[327644904,1716271832730,-475.0,0.00019999,2]
[327644906,1716271832740,-500.0,0.00019999,2]
[327644908,1716271832750,-500.0,0.00019999,2]
[327644910,1716271832760,-425.51226218,0.00019999,2]
[327644912,1716271832769,-500.0,0.00019999,2]
[327644914,1716271832779,-500.0,0.00019999,2]
[327644916,1716271832788,-500.0,0.00019999,2]
[327644918,1716271832798,-500.0,0.00019999,2]
[327644920,1716271832807,-500.0,0.00019999,2]
[327644922,1716271832817,-500.0,0.00019999,2]
[327644924,1716271832827,-500.0,0.00019999,2]
[327644926,1716271832837,-500.0,0.00019999,2]
[327644928,1716271832847,-500.0,0.00019999,2]
[327644930,1716271832857,-500.0,0.00019999,2]
[327644932,1716271832867,-1356.91689391,0.0002,5]
[327644934,1716271832879,-819.80013339,0.0002,5]
[327644993,1716271833451,155.02790502,9.999e-05,2]
[327645062,1716271840469,-285.12297754,0.00017438,2]
[327645063,1716271840479,-1951.09576824,0.00018,7]
[327645064,1716271840491,-6408.20729064,0.00018,7]
[327645065,1716271840500,-50138.66471267,0.0002,5]
[327645066,1716271840512,-1565.76746434,0.0002,2]
[327645067,1716271840521,-155.02790502,0.00020898,2]
[327645068,1716271840531,-400.0,0.00020899,2]
[327645069,1716271840541,-155.02790502,0.000209,2]
[327645070,1716271840551,-500.0,0.00020905,2]
[327645071,1716271840564,-500.0,0.00020905,2]
[327645072,1716271840573,-501.69008686,0.00020905,2]
[327645073,1716271840583,-323.63714841,0.00020905,2]
[327645074,1716271840593,-500.0,0.00020905,2]
[327645075,1716271840602,-1224.03039039,0.00020905,2]
[327645076,1716271840611,-158.38182664,0.00020905,2]
[327645077,1716271840620,-500.0,0.00020905,2]
[327645079,1716271840630,-500.0,0.00020905,2]
[327645081,1716271840639,-500.0,0.00020905,2]
[327645083,1716271840648,-1224.03039039,0.00020905,2]
[327645085,1716271840657,-500.0,0.00020905,2]
[327645087,1716271840666,-500.0,0.00020905,2]
[327645089,1716271840675,-1224.03039039,0.00020905,2]
[327645091,1716271840684,-447.52609875,0.00020905,2]
[327645093,1716271840693,-500.0,0.00020905,2]
[327645094,1716271840702,-500.0,0.00020905,2]
[327645095,1716271840711,-1224.03039039,0.00020905,2]
[327645096,1716271840721,-500.0,0.00020905,2]
[327645097,1716271840731,-500.0,0.00020905,2]
[327645098,1716271840740,-1224.03039039,0.00020905,2]
[327645099,1716271840749,-500.0,0.00020905,2]
[327645100,1716271840759,-1224.03039039,0.00020905,2]
[327645101,1716271840769,-500.0,0.00020905,2]
[327645102,1716271840778,-1224.03039039,0.00020905,2]
[327645103,1716271840788,-500.0,0.00020905,2]
[327645104,1716271840798,-1224.03039039,0.00020905,2]
[327645105,1716271840807,-500.0,0.00020905,2]
[327645106,1716271840816,-1224.03039039,0.00020905,2]
[327645107,1716271840825,-500.0,0.00020905,2]
[327645108,1716271840834,-500.0,0.00020905,2]
[327645109,1716271840844,-500.0,0.00020905,2]
[327645110,1716271840853,-1224.03039039,0.00020905,2]
[327645111,1716271840863,-500.0,0.00020905,2]
[327645112,1716271840872,-500.0,0.00020905,2]
[327645113,1716271840881,-1224.03039039,0.00020905,2]
[327645114,1716271840891,-500.0,0.00020905,2]
[327645115,1716271840900,-500.0,0.00020905,2]
[327645116,1716271840909,-636.31469084,0.00020905,2]
[327645117,1716271840918,-1224.03039039,0.00020905,2]
[327645118,1716271840928,-500.0,0.00020905,2]
[327645119,1716271840937,-1224.03039039,0.00020905,2]
[327645120,1716271840947,-500.0,0.00020905,2]
[327645121,1716271840957,-500.0,0.00020905,2]
[327645122,1716271840966,-1224.03039039,0.00020905,2]
[327645123,1716271840975,-209.09446661,0.00020905,2]
[327645124,1716271840985,-500.0,0.00020905,2]
[327645125,1716271840994,-500.0,0.00020905,2]
[327645126,1716271841005,-299.12723995,0.00020905,2]
[327645127,1716271841015,-500.0,0.00020905,2]
[327645128,1716271841024,-500.0,0.00020905,2]
[327645129,1716271841033,-1224.03039039,0.00020905,2]
[327645130,1716271841042,-1224.03039039,0.00020905,2]
[327645131,1716271841052,-500.0,0.00020905,2]
[327645132,1716271841061,-1224.03039039,0.00020905,2]
[327645133,1716271841070,-500.0,0.00020905,2]
[327645134,1716271841080,-1224.03039039,0.00020905,2]
[327645135,1716271841090,-1224.03039039,0.00020905,2]
[327645136,1716271841099,-1224.03039039,0.00020905,2]
[327645137,1716271841109,-500.0,0.00020905,2]
[327645138,1716271841119,-1224.03039039,0.00020905,2]
[327645139,1716271841129,-1224.03039039,0.00020905,2]
[327645140,1716271841138,-1224.03039039,0.00020905,2]
[327645141,1716271841147,-1224.03039039,0.00020905,2]
[327645142,1716271841156,-1224.03039039,0.00020905,2]
[327645143,1716271841166,-1224.03039039,0.00020905,2]
[327645144,1716271841175,-1224.03039039,0.00020905,2]
[327645145,1716271841185,-1224.03039039,0.00020905,2]
[327645146,1716271841194,-1224.03039039,0.00020905,2]
[327645147,1716271841203,-1224.03039039,0.00020905,2]
[327645148,1716271841212,-1224.03039039,0.00020905,2]
[327645149,1716271841221,-1224.03039039,0.00020905,2]
[327645150,1716271841232,-1224.03039039,0.00020905,2]
[327645151,1716271841241,-1224.03039039,0.00020905,2]
[327645152,1716271841250,-4693.15522604,0.00020905,2]
[327645153,1716271841260,-200.0,0.0002137,2]
[327645154,1716271841269,-166.666666,0.00021918,2]
[327645155,1716271841278,-250.20922677,0.000221,2]
[327645156,1716271841288,-166.666666,0.00022431,2]
[327645157,1716271841297,-774.8,0.00022799,3]
[327645158,1716271841307,-166.666666,0.00022944,2]
[327645159,1716271841316,-166.666666,0.00023456,2]
[327645160,1716271841325,-387.34839882,0.00023564,2]
[327645161,1716271841334,-166.666666,0.00023969,2]
[327645162,1716271841344,-187.1961905,0.00024299,2]
[327645163,1716271841353,-250.20922677,0.000243,2]
[327645164,1716271841362,-261.505415,0.00024384,2]
[327645165,1716271841371,-166.666666,0.00024482,2]
[327645166,1716271841380,-235.90522832,0.00025,2]
[327645167,1716271841390,-400.79054117,0.00025204,2]
[327645168,1716271841399,-387.34839882,0.00025809,2]
[327645169,1716271841408,-774.8,0.00025919,5]
[327645170,1716271841417,-250.20922677,0.000265,2]
[327645171,1716271841426,-3000.0,0.0002651,2]
[327645172,1716271841436,-658.2975396,0.0002651,2]
[327645173,1716271841445,-324.0,0.00027,2]
[327645174,1716271841454,-1136.74590385,0.0002739,2]
[327645175,1716271841464,-500.0,0.00027397,2]
[327645176,1716271841474,-500.0,0.00027397,2]
[327645177,1716271841483,-484.50536625,0.00027397,2]
[327645178,1716271841493,-500.0,0.00027397,2]
[327645179,1716271841504,-500.0,0.00027397,2]
[327645180,1716271841515,-500.0,0.00027397,2]
[327645181,1716271841525,-500.0,0.00027397,2]
[327645182,1716271841535,-214.24254968,0.00027397,2]
[327645183,1716271841546,-324.0,0.00027671,2]
[327645184,1716271841557,-324.0,0.00027945,2]
[327645185,1716271841566,-387.34839882,0.00028055,2]
[327645186,1716271841576,-324.0,0.00028219,2]
[327645187,1716271841586,-324.0,0.00028493,2]
[327645188,1716271841596,-417.32360569,0.00028535,2]
[327645189,1716271841605,-4224.07535635,0.00028692,2]
[327645190,1716271841614,-3239.84939756,0.0002871,3]
[327645191,1716271841624,-324.0,0.00028767,2]
[327645192,1716271841635,-774.8,0.00029039,7]
[327645193,1716271841644,-302.70661723,0.0002994,2]
[327645194,1716271841654,-281.0,0.0003,2]
[327645195,1716271841663,-285.0,0.0003,2]
[327645196,1716271841672,-464.20978224,0.0003,30]
[327645197,1716271841681,-329.0,0.00030205,2]
[327645198,1716271841690,-324.0,0.00030205,2]
[327645199,1716271841699,-387.34839882,0.000303,2]
[327645200,1716271841708,-261.505415,0.0003031,2]
[327645201,1716271841718,-209.18962,0.00031,6]
[327645202,1716271841728,-386.5588761,0.00031,2]
[327645203,1716271841737,-386.5588761,0.00031,2]
[327645204,1716271841747,-386.5588761,0.00031,2]
[327645205,1716271841756,-386.5588761,0.00031,2]
[327645206,1716271841766,-386.5588761,0.00031,2]
[327645207,1716271841776,-386.5588761,0.00031,2]
[327645208,1716271841786,-386.5588761,0.00031,2]
[327645209,1716271841795,-386.5588761,0.00031,2]
[327645210,1716271841804,-386.5588761,0.00031,2]
[327645211,1716271841814,-386.5588761,0.00031,2]
[327645212,1716271841823,-386.5588761,0.00031,2]
[327645213,1716271841832,-386.5588761,0.00031,2]
[327645214,1716271841841,-386.5588761,0.00031,2]
[327645215,1716271841850,-386.5588761,0.00031,2]
[327645216,1716271841859,-386.5588761,0.00031,2]
[327645217,1716271841867,-386.5588761,0.00031,2]
[327645218,1716271841876,-386.5588761,0.00031,2]
[327645219,1716271841885,-386.5588761,0.00031,2]
[327645220,1716271841894,-386.5588761,0.00031,2]
[327645221,1716271841903,-386.55887,0.00031,2]
[327645222,1716271841912,-324.0,0.00031414,2]
[327645223,1716271841921,-324.0,0.00031644,2]
[327645224,1716271841930,-450.21209684,0.00032,4]
[327645225,1716271841939,-774.8,0.00032159,7]
[327645226,1716271841949,-1325.62723775,0.0003239,4]
[327645227,1716271841958,-163.57187582,0.00032468,2]
[327645228,1716271841967,-387.34839882,0.00032545,2]
[327645229,1716271841977,-324.0,0.00032622,2]
[327645230,1716271841986,-400.0,0.00032877,30]
[327645231,1716271841995,-1000.0,0.00033,2]
[327645232,1716271842005,-285.0,0.00033,2]
[327645233,1716271842016,-324.0,0.00033082,2]
[327645234,1716271842025,-499.8851,0.00033251,30]
[327645235,1716271842035,-151.0226534,0.0003327,2]
[327645236,1716271842044,-250.52845927,0.0003327,2]
[327645237,1716271842054,-1000.0,0.000335,2]
[327645238,1716271842064,-302.0453068,0.00033829,4]
[327645239,1716271842074,-324.0,0.0003383,2]
[327645240,1716271842084,-234.80749296,0.00034,2]
[327645241,1716271842095,-8868.38835483,0.00034,30]
[327645242,1716271842107,-522.61985559,0.00034,5]
[327645243,1716271842117,-1529.03875137,0.00034,2]
[327645244,1716271842126,-468.06564433,0.00034187,4]
[327645245,1716271842259,-310.01860223,0.00034188,2]
[327645246,1716271842270,-3021.99844196,0.0003437,14]
[327645247,1716271842361,-427.63664462,0.0003437,14]
[327645292,1716271843705,-206.6,0.00019679,2]
[327645294,1716271843714,-159.73051569,0.00022099,2]
[327645296,1716271843724,-206.6,0.00022799,3]
[327645298,1716271843733,-206.6,0.00025919,5]
[327645300,1716271843742,-206.6,0.00029039,7]
[327645302,1716271843752,-206.6,0.00032159,7]
[327645304,1716271843762,-8182.81641949,0.0003437,14]